bitfinex/quotes_SOLUSD_20241213
["timestamp","ask_amount","ask_price","bid_price","bid_amount"]
[1734112579308,12.7313,223.39,223.25,13.21901122]
[1734112579516,12.7313,223.39,223.26,23.776884]
[1734112579890,12.7313,223.39,223.29,36.99589522]
[1734112580111,12.7313,223.39,223.31,23.776884]
[1734112580409,12.7313,223.39,223.29,36.99589522]
[1734112581194,12.7313,223.39,223.28,36.99589522]
[1734112581393,12.7313,223.39,223.27,23.776884]
[1734112581615,12.7313,223.39,223.25,23.776884]
[1734112581796,12.7313,223.39,223.25,36.99589522]
[1734112581994,12.7313,223.39,223.26,13.21901122]
[1734112582195,12.7313,223.39,223.28,13.21901122]
[1734112582411,12.7313,223.39,223.29,36.99589522]
[1734112582610,12.7313,223.39,223.29,23.776884]
[1734112582993,12.7313,223.39,223.28,23.776884]
[1734112583195,12.7313,223.39,223.28,36.99589522]
[1734112583435,12.7313,223.39,223.3,23.776884]
[1734112583797,1.5402,223.39,223.33,23.776884]
[1734112584208,1.5402,223.39,223.33,36.99589522]
[1734112585131,1.5402,223.39,223.29,13.21901122]
[1734112585301,1.5402,223.39,223.29,23.902374]
[1734112585502,1.5402,223.39,223.29,0.12549]
[1734112585697,1.5402,223.39,223.3,23.776884]
[1734112586822,1.5402,223.39,223.29,36.99589522]
[1734112587114,1.5402,223.39,223.3,13.21901122]
[1734112587510,1.5402,223.39,223.31,13.21901122]
[1734112587918,11.1916,223.38,223.28,13.34450122]
[1734112588222,11.1916,223.38,223.28,0.12549]
[1734112588819,11.1916,223.38,223.27,23.776884]
[1734112589023,11.1916,223.38,223.29,13.21901122]
[1734112589230,1.5402,223.39,223.3,37.12138522]
[1734112589737,1.5402,223.39,223.32,13.21901122]
[1734112589937,1.5402,223.39,223.34,13.21901122]
[1734112590102,1.5402,223.39,223.35,13.21901122]
[1734112590306,6.6397,223.43,223.36,23.902374]
[1734112590925,6.6397,223.43,223.36,0.12549]
[1734112591429,6.6397,223.43,223.36,30.12549]
[1734112592204,6.6397,223.43,223.36,0.12549]
[1734112594113,6.6397,223.43,223.35,0.12549]
[1734112594312,6.6397,223.43,223.35,30.12549]
[1734112594727,6.6397,223.43,223.35,0.12549]
[1734112594933,17.8293,223.43,223.31,13.21901122]
[1734112595118,17.8293,223.43,223.27,13.21901122]
[1734112595317,17.8293,223.43,223.29,30.0]
[1734112595568,20.0,223.4,223.29,30.0]
[1734112596218,11.1911,223.39,223.29,30.0]
[1734112597133,1.5606,223.38,223.29,30.0]
[1734112597327,11.1921,223.37,223.29,30.0]
[1734112598539,11.1921,223.37,223.25,0.12549]
[1734112598739,11.1921,223.37,223.26,30.0]
[1734112601441,1.5606,223.38,223.31,13.23091907]
[1734112601745,8.2816,223.43,223.35,13.23091907]
[1734112603140,8.2816,223.43,223.32,0.12549]
[1734112603340,8.2816,223.43,223.34,13.23091907]
[1734112604445,8.2816,223.43,223.35,30.0]
[1734112606440,8.2816,223.43,223.35,43.23091907]
[1734112606824,8.2816,223.43,223.35,30.0]
[1734112607331,11.1896,223.42,223.35,30.0]
[1734112608826,11.1896,223.42,223.27,13.23091907]
[1734112609049,20.0,223.39,223.29,30.0]
[1734112609933,11.1896,223.42,223.32,13.23091907]
[1734112610137,11.1896,223.42,223.33,30.0]
[1734112610340,11.1896,223.42,223.33,43.23091907]
[1734112611444,11.1896,223.42,223.33,30.0]
[1734112614937,11.1896,223.42,223.31,13.23091907]
[1734112615346,11.1896,223.42,223.3,13.35640907]
[1734112615535,11.1896,223.42,223.31,0.12549]
[1734112615853,11.1896,223.42,223.3,13.23091907]
[1734112616064,11.1896,223.42,223.28,37.25878307]
[1734112616353,11.1896,223.42,223.28,37.13329307]
[1734112616655,11.1896,223.42,223.28,13.23091907]
[1734112616656,33.5689,223.42,223.28,13.23091907]
[1734112617759,33.5689,223.42,223.29,13.23091907]
[1734112618079,33.5689,223.42,223.3,13.23091907]
[1734112618430,11.1896,223.42,223.31,0.12549]
[1734112618850,11.1896,223.42,223.31,30.12549]
[1734112620236,11.1896,223.42,223.31,43.35640907]
[1734112620439,11.1896,223.42,223.31,30.12549]
[1734112621033,33.5689,223.42,223.31,30.0]
[1734112621753,33.5689,223.42,223.27,13.23091907]
[1734112621954,33.5689,223.42,223.28,30.0]
[1734112622642,11.1916,223.38,223.28,30.0]
[1734112624349,11.1916,223.38,223.28,13.23091907]
[1734112624660,11.1916,223.38,223.29,30.0]
[1734112625450,8.2816,223.43,223.29,30.0]
[1734112625451,20.0,223.4,223.3,13.35640907]
[1734112625752,11.1902,223.41,223.31,43.23091907]
[1734112626865,8.2816,223.43,223.32,37.25878307]
[1734112627167,8.2816,223.43,223.36,13.23091907]
[1734112627458,8.2816,223.43,223.35,13.23091907]
[1734112628772,8.2816,223.43,223.36,30.0]
[1734112628937,19.4712,223.43,223.36,30.0]
[1734112629677,19.4712,223.43,223.31,24.027864]
[1734112629957,19.4712,223.43,223.32,30.0]
[1734112633270,41.8495,223.43,223.32,30.0]
[1734112634261,20.0,223.4,223.32,30.0]
[1734112634457,11.1911,223.39,223.32,30.0]
[1734112634780,11.1911,223.39,223.29,0.12549]
[1734112634955,11.1911,223.39,223.28,13.23091907]
[1734112635157,11.1911,223.39,223.28,0.12549]
[1734112635874,11.1911,223.39,223.27,38.46612226]
[1734112636184,11.1911,223.39,223.27,30.0]
[1734112636361,20.0,223.39,223.27,0.12549]
[1734112636547,20.0,223.39,223.25,23.902374]
[1734112636746,1.6549,223.38,223.25,23.902374]
[1734112637155,1.6549,223.38,223.25,0.12549]
[1734112637356,1.6549,223.38,223.25,0.25098]
[1734112637547,11.1921,223.37,223.25,24.027864]
[1734112637751,11.1921,223.37,223.27,30.0]
[1734112639088,1.6549,223.38,223.29,13.23159929]
[1734112639301,1.6549,223.38,223.32,13.23159929]
[1734112641461,1.6549,223.38,223.31,0.12549]
[1734112641663,12.8469,223.38,223.28,23.902374]
[1734112642699,12.8469,223.38,223.25,13.23159929]
[1734112642855,35.2302,223.38,223.24,13.23159929]
[1734112643884,35.2302,223.38,223.25,30.0]
[1734112644968,20.0,223.35,223.25,30.0]
[1734112645271,11.1936,223.34,223.25,30.0]
[1734112647173,11.1946,223.32,223.25,30.0]
[1734112647987,11.1946,223.32,223.22,27.87994626]
[1734112647988,1.5922,223.31,223.22,27.87994626]
[1734112648179,20.0,223.29,223.23,30.0]
[1734112648397,20.0,223.29,223.17,16.13848868]
[1734112649262,11.1967,223.28,223.17,16.13848868]
[1734112650460,1.5187,223.24,223.17,16.13848868]
[1734112650990,7.9741,223.24,223.11,13.23159929]
[1734112651367,11.1992,223.23,223.12,30.0]
[1734112653881,11.1992,223.23,223.12,43.23159929]
[1734112654084,11.1992,223.23,223.14,13.23159929]
[1734112654277,7.9741,223.24,223.15,13.23159929]
[1734112656691,7.9741,223.24,223.16,23.776884]
[1734112657186,7.9741,223.24,223.12,30.0]
[1734112657187,19.1728,223.24,223.12,30.0]
[1734112657392,19.1728,223.24,223.13,23.776884]
[1734112657579,19.1728,223.24,223.14,30.0]
[1734112658182,20.0,223.21,223.14,30.0]
[1734112658980,19.1728,223.24,223.15,0.12549]
[1734112659182,19.1728,223.24,223.15,13.35708929]
[1734112659374,19.1728,223.24,223.16,23.776884]
[1734112660092,19.1728,223.24,223.15,23.902374]
[1734112660893,1.5187,223.24,223.18,23.776884]
[1734112661595,1.5187,223.24,223.2,23.776884]
[1734112662584,1.5187,223.24,223.21,0.12549]
[1734112662786,6.239,223.29,223.21,0.12549]
[1734112663293,1.6314,223.3,223.23,0.12549]
[1734112663476,6.3469,223.35,223.28,37.00848329]
[1734112663887,6.3469,223.35,223.28,23.776884]
[1734112664794,1.6314,223.36,223.28,23.776884]
[1734112664795,1.6314,223.36,223.29,0.25098]
[1734112666204,20.0,223.33,223.21,20.0]
[1734112666386,12.8241,223.36,223.21,20.0]
[1734112666387,12.8241,223.36,223.24,13.23159929]
[1734112666598,1.6314,223.36,223.29,13.23159929]
[1734112667103,1.6314,223.36,223.29,43.23159929]
[1734112667401,1.6314,223.36,223.3,0.12549]
[1734112667597,1.6314,223.36,223.31,0.12549]
[1734112668187,11.189,223.44,223.34,13.23159929]
[1734112668401,11.189,223.44,223.35,23.902374]
[1734112668703,20.0,223.41,223.35,23.902374]
[1734112668909,20.0,223.41,223.35,23.776884]
[1734112669078,20.0,223.41,223.32,23.776884]
[1734112669281,21.6314,223.41,223.34,23.776884]
[1734112670585,21.6314,223.41,223.33,0.12549]
[1734112672307,21.6314,223.41,223.33,23.902374]
[1734112673307,21.6314,223.41,223.33,13.35708929]
[1734112673617,1.6314,223.41,223.36,23.776884]
[1734112674520,1.6314,223.41,223.35,23.776884]
[1734112675715,1.6314,223.41,223.35,0.12549]
[1734112675925,12.8215,223.41,223.34,23.776884]
[1734112676086,12.8215,223.41,223.33,23.902374]
[1734112676515,12.8215,223.41,223.33,0.12549]
[1734112677899,12.8215,223.41,223.3,37.00848329]
[1734112678095,12.8215,223.41,223.29,29.36243104]
[1734112678508,12.8215,223.41,223.3,30.0]
[1734112679398,12.8215,223.41,223.31,37.00848329]
[1734112680684,12.8215,223.41,223.32,30.0]
[1734112681918,12.8215,223.41,223.33,23.776884]
[1734112682125,22.377,223.45,223.29,16.13083175]
[1734112682126,11.1887,223.44,223.37,37.13397329]
[1734112682598,11.1887,223.44,223.37,23.902374]
[1734112683194,11.1887,223.44,223.37,0.12549]
[1734112683431,11.1887,223.44,223.36,8.45970125]
[1734112683432,11.1887,223.44,223.36,0.25098]
[1734112683720,11.1887,223.44,223.37,23.776884]
[1734112683909,11.1887,223.44,223.36,30.0]
[1734112683910,20.0,223.41,223.36,30.0]
[1734112684415,20.0,223.41,223.3,0.25098]
[1734112684609,20.0,223.41,223.32,0.12549]
[1734112685006,31.1904,223.41,223.32,8.45970125]
[1734112685212,31.1904,223.41,223.32,13.22325937]
[1734112685724,31.1904,223.41,223.3,13.47423937]
[1734112686028,31.1904,223.41,223.31,23.776884]
[1734112687103,31.1904,223.41,223.3,0.12549]
[1734112687293,31.1904,223.41,223.28,13.22325937]
[1734112687493,1.5797,223.4,223.3,30.0]
[1734112687817,1.5797,223.4,223.28,13.22325937]
[1734112688615,11.1911,223.39,223.31,37.00014337]
[1734112688797,11.1911,223.39,223.3,37.12563337]
[1734112689215,11.1911,223.39,223.31,0.12549]
[1734112690025,1.5797,223.4,223.33,13.22325937]
[1734112690230,1.6336,223.47,223.37,13.22325937]
[1734112690519,1.6336,223.47,223.41,13.22325937]
[1734112691018,1.6336,223.47,223.4,13.22325937]
[1734112691240,1.6336,223.47,223.39,13.22325937]
[1734112691526,1.6336,223.47,223.38,37.25112337]
[1734112692118,1.6336,223.47,223.36,13.22325937]
[1734112692119,11.1876,223.46,223.36,13.22325937]
[1734112692313,11.1876,223.46,223.37,30.0]
[1734112692812,11.1876,223.46,223.37,43.22325937]
[1734112693606,1.6336,223.47,223.39,13.22325937]
[1734112694813,1.6336,223.47,223.4,30.0]
[1734112695924,1.6336,223.47,223.39,13.22325937]
[1734112696329,1.6336,223.47,223.38,13.22325937]
[1734112696625,1.6336,223.47,223.39,0.12549]
[1734112697624,11.1876,223.46,223.36,0.12549]
[1734112697927,11.1876,223.46,223.34,33.22325937]
[1734112698127,33.5629,223.46,223.32,13.22325937]
[1734112698333,20.0,223.43,223.3,13.22325937]
[1734112698643,20.0,223.43,223.29,29.35409112]
[1734112698820,20.0,223.43,223.29,16.13083175]
[1734112699021,20.0,223.43,223.29,29.35409112]
[1734112699224,20.0,223.43,223.3,30.0]
[1734112699724,11.1896,223.42,223.3,30.0]
[1734112699922,1.64,223.41,223.3,30.0]
[1734112700526,20.0,223.39,223.3,30.0]
[1734112701730,1.64,223.41,223.31,13.22325937]
[1734112701931,1.64,223.41,223.3,13.22325937]
[1734112702729,1.64,223.41,223.3,0.12549]
[1734112703220,11.1906,223.4,223.3,0.12549]
[1734112703419,11.1906,223.4,223.3,30.12549]
[1734112703737,11.1906,223.4,223.3,30.0]
[1734112704035,11.1906,223.4,223.33,13.22325937]
[1734112704235,1.64,223.41,223.32,0.25098]
[1734112704236,1.64,223.41,223.35,13.22325937]
[1734112704529,11.1891,223.44,223.37,13.22325937]
[1734112705031,1.6225,223.46,223.38,13.22325937]
[1734112705234,1.6225,223.46,223.39,13.22325937]
[1734112705619,1.6225,223.46,223.42,13.34874937]
[1734112705819,1.5396,223.56,223.43,0.25098]
[1734112706012,1.5396,223.56,223.46,0.12549]
[1734112706212,1.5396,223.56,223.45,13.22325937]
[1734112706428,11.1831,223.55,223.42,43.22325937]
[1734112707432,11.1831,223.55,223.42,30.0]
[1734112708645,11.1851,223.51,223.39,24.027864]
[1734112708816,11.1851,223.51,223.4,30.0]
[1734112708817,20.0,223.48,223.4,30.0]
[1734112710216,20.0,223.52,223.4,30.0]
[1734112710420,20.0,223.52,223.38,13.22325937]
[1734112710622,20.0,223.52,223.39,30.0]
[1734112710822,1.6239,223.51,223.39,30.0]
[1734112711334,11.1856,223.5,223.39,30.0]
[1734112711915,6.0478,223.49,223.38,0.12549]
[1734112712128,6.0478,223.49,223.38,13.34874937]
[1734112712342,11.1866,223.48,223.38,13.34874937]
[1734112712955,11.1866,223.48,223.38,0.12549]
[1734112714724,11.1866,223.48,223.4,13.22325937]
[1734112714931,6.0478,223.49,223.36,23.902374]
[1734112714932,6.0478,223.49,223.42,13.22325937]
[1734112715320,12.809,223.51,223.43,13.22325937]
[1734112715516,12.809,223.51,223.42,13.22325937]
[1734112715745,12.809,223.51,223.44,13.34874937]
[1734112716836,1.6239,223.51,223.46,13.22325937]
[1734112717459,17.3127,223.54,223.48,13.22325937]
[1734112717759,1.5301,223.56,223.51,13.22325937]
[1734112718418,6.4392,223.61,223.52,0.12549]
[1734112718733,17.6198,223.61,223.52,13.22325937]
[1734112718928,17.6198,223.61,223.51,13.22325937]
[1734112719843,17.6198,223.61,223.53,13.22325937]
[1734112720041,17.6198,223.61,223.54,13.22325937]
[1734112720217,11.1806,223.61,223.53,13.22325937]
[1734112720422,11.1806,223.61,223.54,13.22325937]
[1734112722041,11.1806,223.61,223.54,30.0]
[1734112723846,11.1806,223.61,223.52,13.22325937]
[1734112725030,33.5409,223.61,223.48,13.22325937]
[1734112725345,33.5409,223.61,223.49,30.0]
[1734112725718,33.5409,223.61,223.48,13.22325937]
[1734112726137,33.5409,223.61,223.47,13.22325937]
[1734112726340,33.5409,223.61,223.43,6.3376]
[1734112726341,17.3748,223.57,223.48,30.0]
[1734112727157,39.7391,223.57,223.48,30.0]
[1734112727529,1.5424,223.56,223.48,30.0]
[1734112727859,20.0,223.54,223.48,30.0]
[1734112728348,20.0,223.54,223.43,13.22325937]
[1734112728349,11.1841,223.53,223.43,13.22325937]
[1734112728557,11.1841,223.53,223.44,30.0]
[1734112729255,11.1841,223.53,223.43,13.22325937]
[1734112729658,11.1841,223.53,223.42,13.22325937]
[1734112729839,11.1841,223.53,223.43,43.22325937]
[1734112730457,11.1841,223.53,223.44,13.22325937]
[1734112732053,11.1841,223.53,223.43,13.22325937]
[1734112732433,11.1841,223.53,223.42,13.22325937]
[1734112732842,33.5524,223.53,223.39,27.85889386]
[1734112733070,20.0,223.5,223.39,27.85889386]
[1734112733963,11.1861,223.49,223.39,27.85889386]
[1734112735575,11.1861,223.49,223.39,41.08215323]
[1734112736883,11.1861,223.49,223.4,13.22325937]
[1734112737244,11.1861,223.49,223.39,41.08215323]
[1734112738848,11.1861,223.49,223.42,13.22325937]
[1734112739050,1.57,223.52,223.39,27.85889386]
[1734112739051,12.7547,223.52,223.43,13.22325937]
[1734112739557,12.7547,223.52,223.42,13.22325937]
[1734112739952,12.7547,223.52,223.41,13.34874937]
[1734112740145,12.7547,223.52,223.42,13.22325937]
[1734112741660,12.7547,223.52,223.43,13.22325937]
[1734112742073,12.7547,223.52,223.42,13.22325937]
[1734112743075,12.7547,223.52,223.43,43.22325937]
[1734112744573,12.7547,223.52,223.43,30.0]
[1734112746976,20.0,223.49,223.43,30.0]
[1734112748468,20.0,223.49,223.36,13.22325937]
[1734112748669,11.1866,223.48,223.37,30.0]
[1734112749571,11.1866,223.48,223.37,43.22325937]
[1734112749972,11.1866,223.48,223.38,13.22325937]
[1734112751059,11.1866,223.48,223.39,30.0]
[1734112752782,11.1866,223.48,223.38,13.22325937]
[1734112753269,11.1866,223.48,223.37,13.22325937]
[1734112753468,11.1866,223.48,223.38,30.0]
[1734112756174,6.1976,223.47,223.35,13.22325937]
[1734112756374,6.1976,223.47,223.36,30.0]
[1734112756569,1.5572,223.46,223.36,30.0]
[1734112756987,1.5572,223.46,223.33,13.22325937]
[1734112757195,20.0,223.44,223.32,13.22325937]
[1734112757583,11.1891,223.43,223.33,13.22325937]
[1734112758882,20.0,223.4,223.23,65.97056544]
[1734112759081,20.0,223.4,223.27,30.0]
[1734112759673,20.0,223.4,223.27,13.22325937]
[1734112760103,20.0,223.4,223.28,30.0]
[1734112760589,6.1953,223.39,223.28,30.0]
[1734112760913,0.12549,223.38,223.28,30.0]
[1734112761211,11.1921,223.37,223.28,30.0]
[1734112763090,11.1921,223.37,223.25,30.0]
[1734112763272,11.1921,223.37,223.25,43.22325937]
[1734112763476,11.1921,223.37,223.28,0.12549]
[1734112763999,11.1905,223.41,223.34,13.22325937]
[1734112764174,6.1101,223.44,223.34,13.22325937]
[1734112764775,6.1101,223.44,223.28,30.79715387]
[1734112764776,6.1101,223.44,223.35,13.34874937]
[1734112764975,6.1101,223.44,223.36,13.22325937]
[1734112765583,6.1101,223.44,223.36,30.0]
[1734112765897,6.1101,223.44,223.36,43.22325937]
[1734112767277,31.1901,223.41,223.36,30.0]
[1734112767484,31.1901,223.41,223.32,0.12549]
[1734112767678,31.1901,223.41,223.32,30.12549]
[1734112768079,31.1901,223.41,223.25,13.22325937]
[1734112768704,31.1901,223.41,223.26,30.0]
[1734112769282,53.5704,223.41,223.26,30.0]
[1734112769494,53.5704,223.41,223.27,23.902374]
[1734112769695,53.5704,223.41,223.3,23.776884]
[1734112771108,1.74149493,223.43,223.4,23.776884]
[1734112771889,11.188,223.46,223.4,23.776884]
[1734112772790,21.6632,223.47,223.41,0.12549]
[1734112773990,21.6632,223.47,223.39,23.776884]
[1734112774690,32.8504,223.47,223.39,23.776884]
[1734112774889,32.8504,223.47,223.34,13.22325937]
[1734112775117,32.8504,223.47,223.35,0.12549]
[1734112776509,0.12549,223.44,223.35,30.0]
[1734112776707,20.0,223.42,223.35,30.0]
[1734112777411,0.12549,223.41,223.35,30.0]
[1734112777792,0.12549,223.41,223.29,13.22325937]
[1734112777992,0.12549,223.41,223.3,30.0]
[1734112778410,11.1906,223.4,223.3,30.0]
[1734112778597,11.1906,223.4,223.31,23.776884]
[1734112778598,20.0,223.37,223.31,23.776884]
[1734112779711,20.0,223.37,223.3,0.12549]
[1734112780890,31.1923,223.37,223.3,0.12549]
[1734112781601,31.1923,223.37,223.3,13.34874937]
[1734112782117,31.1923,223.37,223.31,23.776884]
[1734112784085,31.1923,223.37,223.3,23.776884]
[1734112785214,11.1923,223.37,223.31,23.776884]
[1734112785719,11.1923,223.37,223.29,37.12563337]
[1734112786016,11.1923,223.37,223.31,23.776884]
[1734112786811,11.1923,223.37,223.3,23.776884]
[1734112787390,11.1923,223.37,223.3,13.22325937]
[1734112787585,11.1923,223.37,223.31,23.776884]
[1734112787791,11.1923,223.37,223.29,13.34874937]
[1734112788085,11.1923,223.37,223.3,23.776884]
[1734112788998,11.1923,223.37,223.3,37.00014337]
[1734112789206,11.1923,223.37,223.3,13.22325937]
[1734112789721,11.1923,223.37,223.31,23.776884]
[1734112791105,11.1923,223.37,223.3,23.776884]
[1734112791511,11.1923,223.37,223.29,0.12549]
[1734112791701,11.1923,223.37,223.29,53.902374]
[1734112792430,11.1923,223.37,223.31,23.776884]
[1734112793130,11.1923,223.37,223.3,23.776884]
[1734112794326,12.8425,223.37,223.3,23.776884]
[1734112794840,12.8425,223.37,223.29,30.0]
[1734112795045,20.0,223.34,223.29,30.0]
[1734112795335,20.0,223.34,223.23,13.22325937]
[1734112795507,20.0,223.34,223.24,30.0]
[1734112795711,20.0,223.34,223.23,13.22325937]
[1734112796102,20.0,223.34,223.22,13.22325937]
[1734112796103,11.1941,223.33,223.22,13.22325937]
[1734112796540,11.1941,223.33,223.21,13.22325937]
[1734112796716,11.1941,223.33,223.22,13.22325937]
[1734112797420,11.1941,223.33,223.23,23.776884]
[1734112798417,1.5776,223.28,223.18,13.22325937]
[1734112798617,1.5776,223.28,223.19,30.0]
[1734112798808,1.5776,223.28,223.18,13.22325937]
[1734112799331,1.5776,223.28,223.19,13.22325937]
[1734112799535,1.5776,223.28,223.2,23.776884]
[1734112799821,1.5776,223.28,223.21,0.12549]
[1734112800214,1.5776,223.28,223.17,13.22325937]
[1734112800215,11.1972,223.27,223.17,13.22325937]
[1734112800404,11.1972,223.27,223.15,13.22325937]
[1734112800611,11.1972,223.27,223.16,30.0]
[1734112800829,11.1972,223.27,223.15,13.22325937]
[1734112801349,11.1972,223.27,223.19,13.22325937]
[1734112801502,1.5776,223.28,223.22,13.22325937]
[1734112802122,1.5776,223.28,223.23,0.12549]
[1734112803610,1.5776,223.28,223.22,23.776884]
[1734112805124,32.7744,223.28,223.15,13.22325937]
[1734112805325,32.7744,223.28,223.15,43.22325937]
[1734112805917,32.7744,223.28,223.16,13.22325937]
[1734112806629,32.7744,223.28,223.17,23.776884]
[1734112807507,11.1977,223.26,223.14,23.902374]
[1734112807717,11.1977,223.26,223.12,13.22325937]
[1734112807718,0.12549,223.25,223.12,13.22325937]
[1734112808006,20.0,223.23,223.11,13.22325937]
[1734112808216,20.0,223.23,223.12,30.0]
[1734112808414,26.3169,223.23,223.12,30.0]
[1734112808751,26.3169,223.23,223.11,13.22325937]
[1734112808907,11.1997,223.22,223.12,23.902374]
[1734112809413,1.598,223.21,223.12,0.12549]
[1734112809837,1.598,223.21,223.1,0.6720598]
[1734112809838,20.0,223.19,223.1,0.6720598]
[1734112810126,20.0,223.19,223.07,0.5686307]
[1734112810630,20.0,223.19,223.07,13.79189007]
[1734112810631,0.12549,223.18,223.07,13.79189007]
[1734112811134,11.2022,223.17,223.07,13.79189007]
[1734112811320,11.2022,223.17,223.07,0.5686307]
[1734112811840,20.0,223.19,223.1,13.22325937]
[1734112812007,11.2007,223.2,223.11,13.89540123]
[1734112812203,1.598,223.21,223.18,13.22325937]
[1734112812406,1.5839,223.27,223.19,37.00014337]
[1734112812928,1.5839,223.27,223.2,0.12549]
[1734112813428,11.1977,223.26,223.16,23.776884]
[1734112813633,11.1977,223.26,223.15,37.12563337]
[1734112814130,11.1977,223.26,223.15,23.902374]
[1734112815021,11.1977,223.26,223.16,23.776884]
[1734112815222,11.1977,223.26,223.18,37.00014337]
[1734112815422,11.1977,223.26,223.16,23.776884]
[1734112815625,11.1977,223.26,223.17,0.12549]
[1734112815929,11.1977,223.26,223.17,13.34874937]
[1734112816137,11.1977,223.26,223.19,0.12549]
[1734112816439,11.1977,223.26,223.19,23.902374]
[1734112817124,11.1977,223.26,223.18,23.902374]
[1734112817533,11.1977,223.26,223.17,23.902374]
[1734112818120,11.1977,223.26,223.16,23.776884]
[1734112818537,11.1977,223.26,223.15,23.776884]
[1734112819533,11.1977,223.26,223.16,0.12549]
[1734112819719,31.1992,223.23,223.16,0.12549]
[1734112820237,31.1992,223.23,223.15,0.12549]
[1734112820421,31.1992,223.23,223.12,13.22325937]
[1734112820815,31.1992,223.23,223.11,13.22325937]
[1734112821021,31.1992,223.23,223.07,2.30933894]
[1734112821022,1.5365,223.21,223.08,13.22325937]
[1734112821222,1.5365,223.21,223.07,0.5686307]
[1734112821223,1.5365,223.21,223.09,30.0]
[1734112821421,6.0976,223.19,223.07,0.5686307]
[1734112821630,20.0,223.16,223.07,0.5686307]
[1734112822219,31.203,223.16,223.07,0.5686307]
[1734112822422,6.0976,223.19,223.09,13.22325937]
[1734112822935,6.0976,223.19,223.12,23.902374]
[1734112824420,6.0976,223.19,223.12,0.12549]
[1734112824815,6.0976,223.19,223.11,23.776884]
[1734112825021,11.2017,223.18,223.07,0.5686307]
[1734112825236,20.0,223.15,223.07,0.5686307]
[1734112826529,11.2017,223.18,223.09,13.22325937]
[1734112826747,11.2017,223.18,223.1,23.902374]
[1734112826957,6.0976,223.19,223.1,23.902374]
[1734112827160,6.0976,223.19,223.1,13.34874937]
[1734112827360,6.0976,223.19,223.11,23.776884]
[1734112828424,6.0976,223.19,223.1,23.902374]
[1734112829024,6.0976,223.19,223.1,0.12549]
[1734112829247,6.0976,223.19,223.09,0.12549]
[1734112829630,6.0976,223.19,223.09,13.34874937]
[1734112829831,6.0976,223.19,223.1,23.776884]
[1734112830033,6.0976,223.19,223.11,0.12549]
[1734112830252,6.0976,223.19,223.1,23.776884]
[1734112830432,6.0976,223.19,223.09,0.12549]
[1734112830858,6.0976,223.19,223.09,13.34874937]
[1734112831034,6.0976,223.19,223.11,0.12549]
[1734112832531,6.0976,223.19,223.1,0.12549]
[1734112833338,17.2993,223.19,223.08,23.776884]
[1734112833551,20.0,223.16,223.07,0.5686307]
[1734112834666,31.2027,223.16,223.07,0.5686307]
[1734112834868,1.6591,223.15,223.07,0.5686307]
[1734112835936,20.0,223.1,223.07,0.5686307]
[1734112837440,20.0,223.08,223.07,0.5686307]
[1734112838752,21.5264,223.08,223.07,0.5686307]
[1734112838959,21.65189,223.08,223.07,0.5686307]
[1734112839338,0.12549,223.07,222.98,11.53751273]
[1734112839539,20.0,223.0,222.88,2.62492239]
[1734112839767,20.0,223.0,222.89,30.0]
[1734112839965,20.0,223.0,222.88,13.22325937]
[1734112840164,1.641,222.99,222.87,13.89601038]
[1734112840387,12.8525,222.99,222.86,13.22325937]
[1734112840543,12.8525,222.99,222.85,13.75457007]
[1734112840879,12.8525,222.99,222.86,13.22325937]
[1734112841081,1.641,222.99,222.89,13.22325937]
[1734112841238,1.641,222.99,222.9,13.22325937]
[1734112841441,1.641,222.99,222.89,13.22325937]